Cogmind - Beta 15 @@@ ROGUE MODE // 2025.05.10 @ 01:46:54 Player: OJ Result: Destroyed by D-53 Grenadier with Mini Grenade Launcher Performance ------------- Evolutions (0) 0 Regions Visited (2) 400 Robots Destroyed (5) 25 Value Destroyed (111) 111 Prototype IDs (1) 20 Alien Tech Used (0) 0 Bonus (60) 60 TOTAL SCORE: 616 Bonus ------- Follower Combat Kills 60 Cogmind --------- Core Integrity 0/250 Matter 278/300 Energy 125/125 System Corruption 0% Temperature Cool (2) Movement Flying (40) Location -10/Mines Parts ------- > --- POWER (1) -------- Light Ion Engine > --- PROPULSION (2) --- Flight Unit > --- UTILITY (2) ------ Makeshift Terrain Scan Processor Makeshift Core Shielding > --- WEAPON (2) ------- (None) > --- INVENTORY (5) ---- Improved Heat Sink Peak State ------------ > --- POWER ------------ Light Ion Engine > --- PROPULSION ------- VTOL Module VTOL Module > --- UTILITY ---------- Scrap Suit > --- WEAPON ----------- Advanced Beam Cannon Light Assault Rifle > --- INVENTORY -------- Light Ion Engine Flight Unit VTOL Module Small Storage Unit Light Assault Rifle [Rating: 17] Favorites ----------- Power Light Ion Engine Engine Light Ion Engine Propulsion VTOL Module Flight Unit VTOL Module Utility Improved Terrain Scanner Device Improved Terrain Scanner Processor Makeshift Terrain Scan Processor Protection Makeshift Core Shielding Weapon Advanced Beam Cannon Energy Cannon Advanced Beam Cannon Ballistic Gun Light Assault Rifle Special Melee Weapon Improved Datajack Build | -11 -10 -10 ------- Run | Yrd Mat Min Slots Evolved . | . . . Power . | . . . Propulsion . | . . . Utility . | . . . Weapon . | . . . Parts Attached 18 | 1 5 12 Power 3 | 1 . 2 Engine 3 | 1 . 2 Core . | . . . Reactor . | . . . Propulsion 5 | . 2 3 Treads . | . . . Leg . | . . . Wheel . | . . . Hover . | . . . Flight 5 | . 2 3 Utility 5 | . . 5 Device 3 | . . 3 Storage . | . . . Processor 1 | . . 1 Hackware . | . . . Protection 1 | . . 1 Artifact . | . . . Weapon 5 | . 3 2 Energy Gun . | . . . Energy Cannon 2 | . 2 . Ballistic Gun 2 | . 1 1 Ballistic Cannon . | . . . Launcher . | . . . Special Weapon . | . . . Impact Weapon . | . . . Slashing Weapon . | . . . Piercing Weapon . | . . . Special Melee Weapon 1 | . . 1 Unidentified Prototypes 1 | . 1 . Parts Lost 9 | . . 9 Power 2 | . . 2 Propulsion 4 | . . 4 Utility 2 | . . 2 Weapon 1 | . . 1 Highest Loss Streak 6 | . . 6 To Critical Strikes . | . . . Average Backups 4 | 2 5 4 Power . | . 1 . Propulsion 1 | . 1 1 Utility 1 | . 1 1 Weapon . | 1 1 . Tool/Special . | . . . Unused Backups 6 | . 2 4 Power . | . . . Propulsion 1 | . . 1 Utility 2 | . . 2 Weapon 3 | . 2 1 Tool/Special . | . . . Average Slot Usage (%) 68 | . 52 73 Engine 13 | . 14 13 Flight 26 | . 23 27 Device 9 | . . 11 Energy Cannon 6 | . 11 5 Ballistic Gun 4 | . 2 5 Special Melee Weapon 6 | . . 8 Peak Build Rating 17 | 1 9 17 Average Rating 10 | . 7 11 On Entrance 3 | . 1 9 Naked Turns . | . . . Heaviest Build 8 | 3 8 8 Greatest Support 8 | 3 8 8 Greatest Overweight (x) . | . . . Average Overweight (x) . | . . . Largest Inventory Capacity 5 | 5 5 5 Average Capacity 5 | 5 5 5 Most Carried 5 | 5 5 5 Average Carried 4 | 3 4 4 Final Capacity 5 | 5 5 5 Final Carried 5 | 5 5 1 Class Distribution -------------------- 91% | Sprinter 8% | Mutant Dominant Class ---------------- Sprinter | -10/Materials Sprinter | -10/Mines Resources | -11 -10 -10 ----------- Run | Yrd Mat Min Matter Collected 353 | 210 . 143 Remotely . | . . . Salvage Created 145 | . 96 49 Parts 11 | . 5 6 Haulers Intercepted . | . . . Recyclers Shooed . | . . . Parts Field Recycled . | . . . Retrieved Matter . | . . . Parts Self-Destructed . | . . . Prevented . | . . . Kills | -11 -10 -10 ------- Run | Yrd Mat Min Combat Hostiles Destroyed 5 | . 2 3 Guns 2 | . . 2 Cannons 3 | . 2 1 Classes Destroyed 2 | . 1 1 Swarmer 3 | . . 3 Grunt 2 | . 2 . Best Kill Streak 3 | . 2 3 Combat Bots Only 3 | . 2 3 Max Kills in Single Turn 1 | . 1 1 Gunslinging . | . . . Exploded . | . . . Melee . | . . . Uniques/NPCs Destroyed . | . . . Combat | -11 -10 -10 -------- Run | Yrd Mat Min Hostile Shots Fired 87 | . 12 75 Missed 34 | . 6 28 Hits 53 | . 6 47 Projectile 53 | . 6 47 AOE 5 | . . 5 Damage Taken 683 | . 79 604 Core 257 | . 53 204 Absorbed by Shields . | . . . Redirected to Shielding 4 | . . 4 Core Remaining (%) 100 | 100 . . Volleys Fired 18 | . 8 10 Largest 2 | . 1 2 Hottest 88 | . 68 88 Shots Fired 28 | . 8 20 Gun 10 | . . 10 Cannon 18 | . 8 10 Launcher . | . . . Special . | . . . Kinetic 10 | . . 10 Thermal 18 | . 8 10 Explosive . | . . . Electromagnetic . | . . . Robot Hit Streak 3 | . 3 3 Robot Miss Streak 3 | . 1 3 Penetration Max . | . . . Secondary Targets . | . . . Shots Hit Robots 16 | . 6 10 Core Hits 8 | . 3 5 Critical Kills . | . . . Critical Parts Destroyed . | . . . Critical Strikes . | . . . Melee Attacks 1 | . . 1 Impact . | . . . Slashing . | . . . Piercing . | . . . Sneak Attacks . | . . . Combat Hostiles . | . . . Follow-up Attacks . | . . . Damage Inflicted 290 | . 121 169 Guns 47 | . . 47 Cannons 243 | . 121 122 Explosions . | . . . Melee . | . . . Ramming . | . . . Kinetic 47 | . . 47 Thermal 243 | . 121 122 Explosive . | . . . Electromagnetic . | . . . Impact . | . . . Slashing . | . . . Piercing . | . . . Highest Corruption . | . . . Average Corruption . | . . . Corruption Purged . | . . . Corruption Blocked . | . . . Overload Shots . | . . . Overflow Damage . | . . . Projectiles . | . . . Explosions . | . . . Melee . | . . . Knockbacks . | . . . Impact . | . . . Kinetic . | . . . Secondary . | . . . Self-Inflicted Damage . | . . . Shots . | . . . Rammed . | . . . Targets Rammed . | . . . Kicked . | . . . Crushed . | . . . Highest Temperature 300 | . 300 268 Average Temperature 145 | . 155 136 Received Heat Transfer 71 | . 42 29 Siege Activations . | . . . Martial Activations . | . . . Shielding Activations . | . . . Robots Disrupted . | . . . Combat Hostiles . | . . . Robots Corrupted . | . . . Combat Hostiles . | . . . Parts Fried . | . . . Impact Corruptions . | . . . Robots Melted . | . . . Combat Hostiles . | . . . Parts Melted . | . . . Heat Transferred 444 | . 222 222 Parts Sabotaged . | . . . Parts Stolen . | . . . Parts Stripped . | . . . Power Chain Reactions . | . . . Alert | -11 -10 -10 ------- Run | Yrd Mat Min Maximum Alert Level . | . . . Low Security (%) 100 | 100 100 100 Level 1 . | . . . Level 2 . | . . . Level 3 . | . . . Level 4 . | . . . Level 5 . | . . . High Security . | . . . Max Security . | . . . Peak Influence 75 | . 50 75 Initial 13 | . . 13 Average 18 | . 13 21 Influence Increases 330 | . 55 275 Destroy 0b10 Robot/C 140 | . 40 100 Destroy Leader 30 | . 10 20 Allied During Kill 5 | . . 5 Successful Hack 5 | . 5 . Partial Spotted 15 | . . 15 Lose Combat Pursuer 135 | . . 135 Influence Decreases 318 | . 20 298 Entered New Map 22 | . . 22 Time Decay 197 | . 20 177 Lost Part 59 | . . 59 Lost Ally 40 | . . 40 Squads Dispatched . | . . . Investigation . | . . . Extermination . | . . . Reinforcement . | . . . Assault . | . . . Garrison . | . . . Intercept . | . . . Searches Triggered . | . . . Construction Impeded . | . . . Haulers Reinforced . | . . . Active Scanning Responses . | . . . Cargo Convoy Interrupts . | . . . Stealth | -11 -10 -10 --------- Run | Yrd Mat Min Distress Signals . | . . . Communications Jammed . | . . . Distress Signals . | . . . Times Spotted 31 | . 5 26 Peak Tracking Total 6 | . 4 6 Tactical Retreats 7 | . . 7 Traps | -11 -10 -10 ------- Run | Yrd Mat Min Traps Triggered . | . . . Indirectly . | . . . Trap Hack Attempts . | . . . Triggered . | . . . Disarmed . | . . . Reprogrammed . | . . . Reused . | . . . Traps Extracted . | . . . Installed . | . . . Triggered . | . . . Machines | -11 -10 -10 ---------- Run | Yrd Mat Min Machines Disabled . | . . . Max in Single Turn . | . . . Machines Repaired . | . . . Machines Dismantled . | . . . Machines Sabotaged . | . . . Overloaded Fab Kills . | . . . Hacking | -11 -10 -10 --------- Run | Yrd Mat Min Machines Accessed 4 | . 2 2 Terminals 3 | . 2 1 Fabricators . | . . . Repair Stations . | . . . Recycling Units . | . . . Scanalyzers . | . . . Garrison Access . | . . . Total Hacks 9 | . 7 2 Successful 7 | . 5 2 Failed 2 | . 2 . Catastrophic . | . . . Database Lockouts . | . . . Manual 7 | . 7 . Terminals 8 | . 7 1 Fabricators . | . . . Repair Stations . | . . . Recycling Units . | . . . Scanalyzers . | . . . Garrison Access . | . . . Terminal Hacks 2 | . . 2 Open Door 1 | . . 1 Dispatch Records 1 | . . 1 Fabricator Hacks . | . . . Repair Station Hacks . | . . . Recycling Unit Hacks . | . . . Scanalyzer . | . . . Garrison Access Hacks . | . . . Unauthorized Hacks 5 | . 5 . Terminals 5 | . 5 . Assimilate 2 | . 2 . Botnet 2 | . 2 . Skim 1 | . 1 . Fabricators . | . . . Repair Stations . | . . . Recycling Units . | . . . Scanalyzers . | . . . Garrison Access . | . . . Data Cores Recovered . | . . . Used . | . . . Hacking Detections 1 | . 1 . Full Trace Events . | . . . Feedback Events . | . . . Feedback Blocked . | . . . Robot Schematics Acquired . | . . . Robots Built . | . . . Authchips . | . . . Time . | . . . Total Robot Build Rating . | . . . Part Schematics Acquired . | . . . Parts Built . | . . . Authchips . | . . . Time . | . . . Total Part Build Rating . | . . . Parts Repaired . | . . . Time . | . . . Parts Recycled . | . . . Recycled Matter . | . . . Retrieved Matter . | . . . Retrieved Components . | . . . Parts Scanalyzed . | . . . Part Schematics Acquired . | . . . Parts Damaged . | . . . Bothacking | -11 -10 -10 ------------ Run | Yrd Mat Min Used RIF Installer . | . . . Robots Hacked 1 | . . 1 Non-combat . | . . . Combat 1 | . . 1 Robot Hacks Applied 1 | . . 1 parse_system 1 | . . 1 Relay Couplers Released . | . . . Fabnet Peak Effective % . | . . . Robots Rewired . | . . . Allies Hacked . | . . . Hacks Repelled . | . . . Allies | -11 -10 -10 -------- Run | Yrd Mat Min Total Allies 3 | . 1 2 Largest Group 2 | . 1 2 Highest-Rated Group 48 | . 10 48 Highest-Rated Ally 31 | . 10 31 Total Orders . | . . . Ally Attacks 11 | . . 11 Total Damage 167 | . . 167 Kills 2 | . . 2 Allies Corrupted . | . . . Allies Melted . | . . . Intel | -11 -10 -10 ------- Run | Yrd Mat Min Active Infowar (turns) 208 | . . 208 Terrain 208 | . . 208 Robot Analysis Total . | . . . Derelict Logs Recovered 1 | . . 1 Drone Launches . | . . . Drone Recoveries . | . . . Exploration | -11 -10 -10 ------------- Run | Yrd Mat Min Turns Passed 577 | 27 104 446 Spaces Moved 875 | 41 140 694 Core 45 | 41 4 . Treads . | . . . Legs . | . . . Wheels . | . . . Hover . | . . . Flight 830 | . 136 694 Fastest Speed 32 | 50 32 32 Average Speed 33 | 50 32 32 Slowest Speed 50 | 50 50 40 Overloaded Moves . | . . . Propulsion Burnouts . | . . . Robots Hopped 19 | . 5 14 Potential Cave-ins 1 | . . 1 Cave-ins Triggered . | . . . Exploration Rate (%) 41 | 4 38 81 Regions Visited 2 Branch Regions 1 Pre-discovered Areas 1 | . . 1 Known Exits Taken . | . . . Unknown Exits Taken 2 | 1 1 . Scrap Searched 1 | . . 1 Spaces Dug . | . . . Terrain Destroyed . | . . . Melee . | . . . Projectile . | . . . AOE . | . . . Terrain Rammed . | . . . Walls Destroyed . | . . . Machines Disabled . | . . . Actions | -11 -10 -10 --------- Run | Yrd Mat Min Total 1115 | 46 184 885 Wait 201 | . 31 170 Move 837 | 40 130 667 Hop 17 | . 4 13 Pick Up 13 | 5 3 5 Fast Attach 10 | 1 4 5 Attach 7 | . 1 6 Detach . | . . . Swap 1 | . . 1 Drop 10 | . 3 7 Fire 18 | . 8 10 Melee 1 | . . 1 Ram . | . . . Kick . | . . . Crush . | . . . Escape Stasis . | . . . Rewire . | . . . Trap . | . . . Miscellaneous . | . . . Route ------- -11/Scrapyard -10/Materials (discovered 2 exits: [*Mat] / *Min) -10/Mines (discovered 2 exits: [*Mat x2]) History --------- Turn | Location | Event 10 | -11/Scrapyard | Discovered new exit (range 15) 28 | -11/Scrapyard | Entered Materials 76 | -10/Materials | Discovered new exit (range 15) 117 | -10/Materials | Discovered new exit (range 9) 132 | -10/Materials | Entered Mines 132 | -10/Mines | Accompanied by 1 ally 177 | -10/Mines | Assembled infested the area 182 | -10/Mines | Assisted by a Guerilla fighting off Assembled 185 | -10/Mines | Found a Scrap Suit stashed away for nefarious purposes 185 | -10/Mines | Found Scrap Suit 296 | -10/Mines | Met a Derelict who couldn't figure out how to use a Trap Extractor 378 | -10/Mines | Discovered new exit (range 7) 386 | -10/Mines | Discovered new exit (range 7) 460 | -10/Mines | Build established: Sprinter 479 | -10/Mines | Learned location of Mines (-9) 500 | -10/Mines | Core integrity fell below 50% 569 | -10/Mines | Core integrity fell below 20% 578 | -10/Mines | Destroyed by D-53 Grenadier with Mini Grenade Launcher Last Messages --------------- 00540_ Dropped Sml. Storage Unit. 00541_ Acquired Mak. Core Shielding. 00544_ Acquired 10 matter. 00547_ K-01 Serf collects debris. 00552_ Imp. Heat Sink destroyed. 00552_ VTOL Module destroyed. 00552_ T-07 Excavator destroyed. 00553_ Lgt. Ion Engine destroyed. 00553_ D-53 Grenadier destroyed. 00554_ Imp. Datajack destroyed. 00554_ VTOL Module destroyed. 00567_ Connecting with Terminal... >>Enumerate(Squads) Retrieving dispatch records... Found 4 active squads: 3x Patrol 1x Assault 00576_ VTOL Module destroyed. 00578_ The unstable cave ceiling collapses. 00578_ Acquired 13 matter. Map ----- +----------------------------------------------------+ | ?# ##### ####?????????????????????????????????? | | ?# !% #??????#??????????????????????????? | | ?# ######### #????????#????????????????????????? | | ?# ##???????# #?????????????????????????????????? | | ?# #?####???# #?????????????????????????????????? | | ?# ### ###?# #?????????????????????????????????? | | ?# ## #??# #?????????????????????????????????? | | ?# #??# #?????????????????????????????????? | | ?# ## ##??# #?????##??????????????????????????? | | ?## ### #???# #??##? ???????????????????????????? | | ?# ### ###?# #?? ? ???????????????????????????? | | # ## #?# #??? ? ???????????????????????????? | | # ## ## #?# #??? # ???????????????????????????? | | ## ### ## ### ##?? #??????????????????????????? | | ?###### ## #?? #???????????????????????????? | | ?# ###### #??# #??????????????????????? ???? | | ?# #????# #??# #????????????? ????????? ??? | | ?#""" #????# #### #?????????????????????? #? | | ?#""" #????# ## ####??????????????????? # | | ?#""" #????#s## # #??????? ?????????? | | ?# ##??##s ##????????????????? | | ?#######T#???# d ##???????????????? | | ????????##???# * #?????????????????# | | ?????????????## ! #??????????????????# | | ????????######## #???????????????????# | | ???????## ## ### # ##@#????????????????????# | | ??????## = = #########u#????????????????????# | | ??????# ##* [ #???????# #????#??????????????## | | ??????### ### ##???????# ##########?????????## | | ????????# #?####????????# #####?????# | | ????????# #?????????????# ####### | | ????????# #????####?????######## " ## | | ????????# #???## ##???????????## ### | | ????????# ##### ##???????????# #?# ##### | | ????????# ####???????## #?# #???## | | ????????###### ##???????# ##?# #??#?### | | ?????????????# #???????# ##??# #??????# | | ?????????????## #??#????## ##???# #??????? | | ??????????????## ##???????## #????# #??????? | | ???????????????# """ ##???????# ###### ##?????? | | ???????????????# """ ##??????# %## #??????? | | ???############# """ #??????## ## ## #??????? | | ???# ##????#??#!## ## #??#???? | | ???# ####????????#%## #??????? | | ???# ########### ##???????????#=##### #??????? | | ???# #?????????## #???????????## #### ##?????? | | ???# #??????????# ##????????### #??????? | | ???# #??????????# % #???????## #####??????? | | ??## ##?####????# %#???#####%! #######????? | | ??# ### ###??## %%#####=%! = #????? | +----------------------------------------------------+ Best States ------------- Heat Dissipation 39 Energy Generation 10 Energy Capacity 125 Matter Stores 300 Matter Capacity 300 Sight Range 16 Terrain Scan Range 16 Terrain Scan Density 135 Core Shielding 10 Evasion (%) 63 Item Schematics ----------------- None Robot Schematics ------------------ None Fabricated ------------ Nothing Repaired ---------- Nothing Alien Tech Used ----------------- None Achievements -------------- None Challenges ------------ None Game ------ Seed FlakMasterCharge Manual? 0 Play Time 00:14:38 Cumulative 98.8 hours Start 2025.05.10 @ 01:33:56 End 2025.05.10 @ 01:46:54 Sessions 1 Manual Loads 0 Difficulty Rogue Special Mode None Game No. 83 Rogue 83 Adventurer 0 Explorer 0 Win Type - Total 0 Types 0/0/0/0/0/0/0/0/0/0 Lore% 28 Gallery% 49 Achievement% 49 Wizard Run 0 Options --------- Layout 0 ASCII 0 Keyboard 0 Movement Mouse Keybinds 0 Fullscreen 1 Font 18/SmallcapsGlow Map View 76x50 Zoom Use 0% Tactical HUD 1 Map Filters NONE Filters NONE Steam 1 RUN: 55e2fb36-b03b-41e0-8be5-812aaaec3179